fUST/lending_fUST_20240921
["ID","MTS","AMOUNT","RATE_DAILY","PERIOD"]
[338743351,1726906241921,-500.0,0.00014557,2]
[338743352,1726906241932,-500.0,0.00014557,2]
[338743353,1726906241942,-468.04690148,0.00014557,2]
[338743354,1726906241953,-500.0,0.00014557,2]
[338743355,1726906241963,-500.0,0.00014557,2]
[338743356,1726906241974,-500.0,0.00014557,2]
[338743357,1726906241984,-500.0,0.00014557,2]
[338743358,1726906241994,-500.0,0.00014557,2]
[338743359,1726906242004,-1000.0,0.00014557,2]
[338743360,1726906242013,-1000.0,0.00014557,2]
[338743361,1726906242023,-749.6572609,0.00014557,2]
[338743362,1726906242032,-500.0,0.00014557,2]
[338743363,1726906242042,-696.91,0.00014557,2]
[338743364,1726906242051,-500.0,0.00014557,2]
[338743365,1726906242060,-500.0,0.00014557,2]
[338743366,1726906242070,-981.84,0.00014557,2]
[338743367,1726906242080,-500.0,0.00014557,2]
[338743368,1726906242089,-500.0,0.00014557,2]
[338743369,1726906242099,-200.0,0.00014557,2]
[338743370,1726906242111,-500.0,0.00014557,2]
[338743371,1726906242121,-500.0,0.00014557,2]
[338743372,1726906242130,-500.0,0.00014557,2]
[338743373,1726906242139,-500.0,0.00014558,2]
[338743374,1726906242160,-500.0,0.00014558,2]
[338743375,1726906242171,-541.539626,0.00014558,2]
[338743376,1726906242183,-500.0,0.00014558,2]
[338743377,1726906242194,-532.21,0.00014558,2]
[338743378,1726906242206,-500.0,0.00014558,2]
[338743379,1726906242217,-500.0,0.00014558,2]
[338743380,1726906242228,-837.46,0.00014558,2]
[338743381,1726906242240,-607.97,0.00014558,2]
[338743382,1726906242250,-500.0,0.00014558,2]
[338743383,1726906242260,-500.0,0.00014558,2]
[338743384,1726906242271,-500.0,0.00014558,2]
[338743385,1726906242282,-500.0,0.00014558,2]
[338743386,1726906242295,-500.0,0.00014558,2]
[338743387,1726906242307,-500.0,0.00014558,2]
[338743388,1726906242319,-500.0,0.00014558,2]
[338743389,1726906242330,-519.03,0.00014558,2]
[338743390,1726906242341,-500.0,0.00014558,2]
[338743391,1726906242352,-473.00343408,0.00014558,2]
[338743392,1726906242362,-500.0,0.00014558,2]
[338743393,1726906242372,-231.90449802,0.00014558,2]
[338743394,1726906242383,-500.0,0.00014558,2]
[338743395,1726906242394,-500.0,0.00014558,2]
[338743396,1726906242405,-500.0,0.00014558,2]
[338743397,1726906242417,-500.0,0.00014558,2]
[338743398,1726906242428,-500.0,0.00014558,2]
[338743399,1726906242438,-1469.93,0.00014558,2]
[338743400,1726906242448,-500.0,0.00014558,2]
[338743401,1726906242459,-500.0,0.00014558,2]
[338743402,1726906242468,-500.0,0.00014558,2]
[338743403,1726906242478,-500.0,0.00014558,2]
[338743404,1726906242489,-500.0,0.00014559,2]
[338743405,1726906242498,-524.04,0.0001456,2]
[338743406,1726906242508,-500.0,0.0001456,2]
[338743407,1726906242517,-500.0,0.00014593,2]
[338743408,1726906242527,-338.93378883,0.00014618,2]
[338743409,1726906242539,-150.112233,0.000147,2]
[338743410,1726906242549,-338.93378883,0.00014731,2]
[338743411,1726906242559,-1230.14,0.000148,2]
[338743412,1726906242570,-150.112233,0.000148,2]
[338743413,1726906242581,-49312.5711044,0.0001481,2]
[338743414,1726906242593,-151.0,0.0001481,2]
[338743415,1726906242606,-151.0,0.0001481,2]
[338743416,1726906242616,-209.758641,0.0001481,2]
[338743417,1726906242626,-209.758641,0.0001481,2]
[338743418,1726906242637,-49312.5711044,0.00014811,2]
[338743419,1726906242647,-500.0,0.00014829,2]
[338743420,1726906242658,-823.44,0.00014829,2]
[338743421,1726906242668,-500.0,0.00014829,2]
[338743422,1726906242679,-500.0,0.00014829,2]
[338743423,1726906242691,-15314.64,0.00014829,2]
[338743424,1726906242702,-2195.08,0.0001483,2]
[338743425,1726906242713,-500.0,0.0001483,2]
[338743426,1726906242723,-800.25,0.0001483,2]
[338743427,1726906242733,-494.56465757,0.00014831,2]
[338743428,1726906242742,-500.0,0.00014831,2]
[338743429,1726906242752,-603.26,0.00014831,2]
[338743430,1726906242761,-500.0,0.00014831,2]
[338743431,1726906242771,-500.0,0.00014831,2]
[338743432,1726906242780,-500.0,0.00014831,2]
[338743433,1726906242790,-500.0,0.00014831,2]
[338743434,1726906242800,-500.0,0.00014831,2]
[338743435,1726906242810,-500.0,0.00014831,2]
[338743436,1726906242819,-876.34,0.00014831,2]
[338743437,1726906242828,-931.49,0.00014831,2]
[338743438,1726906242839,-500.0,0.00014831,2]
[338743439,1726906242849,-500.0,0.00014831,2]
[338743440,1726906242859,-501.27322743,0.00014831,2]
[338743441,1726906242870,-500.0,0.00014831,2]
[338743442,1726906242881,-10.0153759,0.00014831,2]
[338743472,1726906459187,367.39221,0.00013699,2]
[338743476,1726906488795,162.397312,0.00011781,2]
[338743477,1726906686614,202.2324982,0.00013699,2]
[338743489,1726907019017,244.92814,0.00013699,2]
[338743491,1726907048187,162.397312,0.00011781,2]
[338743500,1726907203455,500.0,0.00011892,2]
[338743631,1726907437885,-962.46141817,0.00014181,2]
[338743633,1726907437895,-300.0,0.00014279,2]
[338743635,1726907437904,-500.0,0.0001428,2]
[338743637,1726907437914,-500.0,0.0001428,2]
[338743639,1726907437923,-824.79,0.0001428,2]
[338743641,1726907437932,-500.0,0.0001428,2]
[338743643,1726907437942,-500.0,0.0001428,2]
[338743645,1726907437951,-500.0,0.0001428,2]
[338743647,1726907437961,-15372.65,0.0001428,2]
[338743648,1726907437970,-803.28,0.0001428,2]
[338743650,1726907437979,-2203.4,0.0001428,2]
[338743652,1726907437989,-500.0,0.00014281,2]
[338743654,1726907437998,-667.87,0.00014281,2]
[338743656,1726907438008,-500.0,0.00014281,2]
[338743658,1726907438018,-940.93,0.00014281,2]
[338743660,1726907438027,-500.0,0.00014281,2]
[338743662,1726907438036,-500.0,0.00014281,2]
[338743664,1726907438046,-200.0,0.00014281,2]
[338743666,1726907438056,-500.0,0.00014281,2]
[338743668,1726907438065,-500.0,0.00014281,2]
[338743670,1726907438074,-500.0,0.00014281,2]
[338743672,1726907438083,-877.85,0.00014281,2]
[338743674,1726907438093,-954.9,0.00014281,2]
[338743676,1726907438104,-500.0,0.00014281,2]
[338743678,1726907438113,-500.0,0.00014281,2]
[338743680,1726907438123,-500.0,0.00014281,2]
[338743682,1726907438132,-500.0,0.00014281,2]
[338743684,1726907438142,-500.0,0.00014281,2]
[338743686,1726907438150,-500.0,0.00014281,2]
[338743688,1726907438160,-500.0,0.00014281,2]
[338743690,1726907438169,-500.0,0.00014281,2]
[338743691,1726907438179,-500.0,0.00014281,2]
[338743693,1726907438188,-500.0,0.00014281,2]
[338743695,1726907438197,-500.0,0.00014281,2]
[338743697,1726907438206,-500.0,0.00014281,2]
[338743699,1726907438215,-500.0,0.00014281,2]
[338743701,1726907438225,-500.0,0.00014281,2]
[338743703,1726907438234,-1850.3,0.00014281,2]
[338743706,1726907438244,-500.0,0.00014281,2]
[338743707,1726907438253,-500.0,0.00014281,2]
[338743709,1726907438262,-500.0,0.00014281,2]
[338743711,1726907438271,-500.0,0.00014281,2]
[338743713,1726907438281,-500.0,0.00014283,2]
[338743715,1726907438290,-500.0,0.00014283,2]
[338743717,1726907438300,-500.0,0.00014283,2]
[338743719,1726907438309,-1480.54,0.00014283,2]
[338743721,1726907438319,-500.0,0.00014283,2]
[338743723,1726907438328,-379.02127384,0.00014283,2]
[338743725,1726907438337,-500.0,0.00014283,2]
[338743727,1726907438347,-500.0,0.00014283,2]
[338743729,1726907438356,-88611.14036414,0.000143,2]
[338743731,1726907438365,-3657.0218638,0.00014345,2]
[338743733,1726907438377,-244.92814,0.00014384,2]
[338743735,1726907438388,-46846.9425492,0.00014445,2]
[338743737,1726907438397,-43537.2123778,0.00014445,2]
[338743739,1726907438407,-169.46689443,0.00014454,2]
[338743741,1726907438418,-59773.36762245,0.00014455,2]
[338743743,1726907438428,-195.0,0.0001451,2]
[338743745,1726907438438,-46846.9425492,0.00014527,2]
[338743747,1726907438447,-43537.2123778,0.00014527,2]
[338743749,1726907438458,-500.0,0.00014533,2]
[338743751,1726907438468,-618.36678515,0.00014533,2]
[338743753,1726907438478,-500.0,0.00014533,2]
[338743755,1726907438488,-500.0,0.00014533,2]
[338743757,1726907438499,-368.3802166,0.00014533,2]
[338743759,1726907438509,-500.0,0.00014533,2]
[338743761,1726907438519,-500.0,0.00014533,2]
[338743763,1726907438529,-500.0,0.00014533,2]
[338743765,1726907438539,-500.0,0.00014533,2]
[338743767,1726907438549,-500.0,0.00014533,2]
[338743769,1726907438558,-500.0,0.00014533,2]
[338743772,1726907438569,-500.0,0.00014533,2]
[338743774,1726907438579,-500.0,0.00014533,2]
[338743776,1726907438588,-425.63159022,0.00014533,2]
[338743778,1726907438598,-500.0,0.00014533,2]
[338743780,1726907438607,-46846.9425492,0.00014535,2]
[338743781,1726907438616,-23624.46506495,0.00014535,2]
[338743892,1726907439664,-19912.74731285,0.00014535,2]
[338743894,1726907439673,-444.6142648,0.00014543,2]
[338743896,1726907439683,-500.0,0.00014543,2]
[338743898,1726907439692,-500.0,0.00014543,2]
[338743899,1726907439701,-500.0,0.00014543,2]
[338743900,1726907439711,-179.55963272,0.00014543,2]
[338743901,1726907439720,-500.0,0.00014543,2]
[338743902,1726907439729,-500.0,0.00014543,2]
[338743903,1726907439740,-571.47117515,0.00014543,2]
[338743904,1726907439750,-500.0,0.00014543,2]
[338743905,1726907439759,-500.0,0.00014543,2]
[338743906,1726907439768,-500.0,0.00014543,2]
[338743907,1726907439777,-500.0,0.00014543,2]
[338743908,1726907439787,-500.0,0.00014543,2]
[338743909,1726907439796,-500.0,0.00014543,2]
[338743910,1726907439805,-500.0,0.00014543,2]
[338743911,1726907439813,-571.11228861,0.00014543,2]
[338743912,1726907439822,-500.0,0.00014543,2]
[338743913,1726907439831,-500.0,0.00014543,2]
[338743914,1726907439840,-500.0,0.00014543,2]
[338743915,1726907439850,-500.0,0.00014543,2]
[338743916,1726907439859,-157.60850622,0.00014544,2]
[338743917,1726907439868,-46846.9425492,0.00014544,2]
[338743918,1726907439878,-43537.2123778,0.00014544,2]
[338743919,1726907439887,-500.0,0.00014554,2]
[338743920,1726907439896,-605.47,0.00014554,2]
[338743921,1726907439905,-500.0,0.00014554,2]
[338743922,1726907439914,-500.0,0.00014554,2]
[338743923,1726907439923,-500.0,0.00014554,2]
[338743924,1726907439932,-500.0,0.00014554,2]
[338743925,1726907439941,-500.0,0.00014554,2]
[338743926,1726907439951,-500.0,0.00014554,2]
[338743927,1726907439960,-500.0,0.00014554,2]
[338743928,1726907439970,-500.0,0.00014554,2]
[338743929,1726907439979,-500.0,0.00014554,2]
[338743930,1726907439988,-500.0,0.00014554,2]
[338743931,1726907439997,-500.0,0.00014554,2]
[338743932,1726907440007,-503.37632516,0.00014554,2]
[338743933,1726907440016,-500.0,0.00014554,2]
[338743934,1726907440025,-248.73159553,0.00014554,2]
[338743936,1726907440035,-500.0,0.00014554,2]
[338743937,1726907440045,-500.0,0.00014554,2]
[338743939,1726907440055,-500.0,0.00014554,2]
[338743941,1726907440064,-500.0,0.00014554,2]
[338743943,1726907440074,-500.0,0.00014554,2]
[338743945,1726907440083,-500.0,0.00014554,2]
[338743947,1726907440093,-500.0,0.00014554,2]
[338743949,1726907440102,-500.0,0.00014554,2]
[338743951,1726907440112,-500.0,0.00014554,2]
[338743952,1726907440121,-500.0,0.00014554,2]
[338743955,1726907440132,-500.0,0.00014554,2]
[338743957,1726907440141,-500.0,0.00014554,2]
[338743959,1726907440151,-500.0,0.00014554,2]
[338743961,1726907440161,-500.0,0.00014554,2]
[338743963,1726907440170,-500.0,0.00014554,2]
[338743965,1726907440179,-500.0,0.00014554,2]
[338743967,1726907440189,-500.0,0.00014554,2]
[338743969,1726907440198,-500.0,0.00014554,2]
[338743971,1726907440207,-500.0,0.00014554,2]
[338743972,1726907440216,-500.0,0.00014554,2]
[338743974,1726907440225,-500.0,0.00014554,2]
[338743976,1726907440234,-500.0,0.00014554,2]
[338743978,1726907440244,-501.26830144,0.00014554,2]
[338743980,1726907440253,-470.22010164,0.00014554,2]
[338743982,1726907440263,-500.0,0.00014554,2]
[338743984,1726907440272,-500.0,0.00014554,2]
[338743986,1726907440281,-500.0,0.00014554,2]
[338743988,1726907440291,-500.0,0.00014554,2]
[338743990,1726907440300,-627.76,0.00014554,2]
[338743992,1726907440310,-500.0,0.00014554,2]
[338743994,1726907440319,-468.04690148,0.00014554,2]
[338743996,1726907440329,-500.0,0.00014554,2]
[338743998,1726907440338,-500.0,0.00014554,2]
[338744000,1726907440347,-500.0,0.00014554,2]
[338744002,1726907440358,-500.0,0.00014554,2]
[338744004,1726907440367,-500.0,0.00014554,2]
[338744006,1726907440381,-500.0,0.00014554,2]
[338744008,1726907440390,-500.0,0.00014554,2]
[338744010,1726907440399,-500.0,0.00014554,2]
[338744012,1726907440410,-500.0,0.00014554,2]
[338744014,1726907440420,-500.0,0.00014554,2]
[338744016,1726907440430,-541.539626,0.00014554,2]
[338744018,1726907440439,-500.0,0.00014554,2]
[338744020,1726907440451,-500.0,0.00014554,2]
[338744022,1726907440460,-532.04,0.00014554,2]
[338744024,1726907440470,-587.32,0.00014554,2]
[338744026,1726907440480,-500.0,0.00014554,2]
[338744028,1726907440492,-628.26,0.00014554,2]
[338744031,1726907440502,-518.87,0.00014554,2]
[338744033,1726907440510,-500.0,0.00014554,2]
[338744035,1726907440519,-500.0,0.00014554,2]
[338744037,1726907440529,-500.0,0.00014554,2]
[338744038,1726907440538,-500.0,0.00014554,2]
[338744040,1726907440547,-500.0,0.00014554,2]
[338744043,1726907440557,-500.0,0.00014554,2]
[338744044,1726907440566,-500.0,0.00014554,2]
[338744046,1726907440576,-500.0,0.00014554,2]
[338744048,1726907440586,-832.89,0.00014554,2]
[338744050,1726907440595,-500.0,0.00014554,2]
[338744052,1726907440604,-500.0,0.00014554,2]
[338744054,1726907440614,-500.0,0.00014554,2]
[338744056,1726907440623,-500.0,0.00014554,2]
[338744058,1726907440634,-824.79,0.00014554,2]
[338744060,1726907440643,-557.841104,0.00014554,2]
[338744062,1726907440653,-500.0,0.00014554,2]
[338744064,1726907440662,-500.0,0.00014554,2]
[338744066,1726907440671,-500.0,0.00014554,2]
[338744068,1726907440680,-500.0,0.00014554,2]
[338744070,1726907440690,-278.10359083,0.00014554,2]
[338744072,1726907440699,-464.43897903,0.00014554,2]
[338744074,1726907440708,-500.0,0.00014554,2]
[338744076,1726907440718,-500.0,0.00014554,2]
[338744078,1726907440727,-500.0,0.00014554,2]
[338744080,1726907440738,-15372.65,0.00014554,2]
[338744082,1726907440747,-803.28,0.00014554,2]
[338744084,1726907440757,-2203.4,0.00014554,2]
[338744086,1726907440766,-500.0,0.00014554,2]
[338744088,1726907440776,-500.0,0.00014554,2]
[338744090,1726907440785,-500.0,0.00014554,2]
[338744092,1726907440795,-500.0,0.00014555,2]
[338744094,1726907440804,-667.87,0.00014555,2]
[338744096,1726907440813,-940.93,0.00014555,2]
[338744098,1726907440822,-500.0,0.00014555,2]
[338744100,1726907440832,-500.0,0.00014555,2]
[338744101,1726907440841,-200.0,0.00014555,2]
[338744103,1726907440851,-500.0,0.00014555,2]
[338744105,1726907440860,-447.81982127,0.00014555,2]
[338744107,1726907440870,-500.0,0.00014555,2]
[338744109,1726907440880,-877.85,0.00014555,2]
[338744111,1726907440889,-954.9,0.00014555,2]
[338744113,1726907440898,-500.0,0.00014555,2]
[338744115,1726907440908,-500.0,0.00014555,2]
[338744117,1726907440917,-500.0,0.00014555,2]
[338744119,1726907440926,-500.0,0.00014555,2]
[338744121,1726907440936,-500.0,0.00014555,2]
[338744123,1726907440945,-500.0,0.00014555,2]
[338744125,1726907440955,-500.0,0.00014555,2]
[338744127,1726907440964,-500.0,0.00014555,2]
[338744129,1726907440973,-500.0,0.00014555,2]
[338744131,1726907440983,-500.0,0.00014555,2]
[338744133,1726907440992,-500.0,0.00014555,2]
[338744135,1726907441001,-500.0,0.00014555,2]
[338744137,1726907441010,-1850.3,0.00014555,2]
[338744139,1726907441019,-500.0,0.00014555,2]
[338744140,1726907441029,-500.0,0.00014555,2]
[338744142,1726907441039,-500.0,0.00014555,2]
[338744144,1726907441047,-500.0,0.00014555,2]
[338744146,1726907441056,-151.0,0.00014556,2]
[338744148,1726907441065,-151.0,0.00014556,2]
[338744150,1726907441076,-496.222771,0.00014556,2]
[338744152,1726907441085,-496.222771,0.00014556,2]
[338744154,1726907441094,-366.71633,0.00014556,2]
[338744156,1726907441103,-366.71633,0.00014556,2]
[338744158,1726907441113,-500.0,0.00014557,2]
[338744159,1726907441122,-500.0,0.00014557,2]
[338744161,1726907441132,-1480.54,0.00014557,2]
[338744163,1726907441142,-500.0,0.00014557,2]
[338744166,1726907441152,-500.0,0.00014557,2]
[338744168,1726907441162,-620.05967728,0.00014575,2]
[338744170,1726907441171,-6707.94644165,0.00014595,2]
[338744172,1726907441180,-151.0,0.0001462,2]
[338744174,1726907441189,-209.758641,0.0001462,2]
[338744176,1726907441198,-209.758641,0.0001462,2]
[338744177,1726907441207,-466.124755,0.0001462,2]
[338744179,1726907441216,-466.124755,0.0001462,2]
[338744181,1726907441225,-46846.9425492,0.0001462,2]
[338744184,1726907441235,-43537.2123778,0.0001462,2]
[338744185,1726907441244,-500.0,0.00014632,2]
[338744187,1726907441254,-1308.84,0.000147,2]
[338744189,1726907441264,-150.0,0.00014711,2]
[338744191,1726907441273,-411.651906,0.00014767,2]
[338744193,1726907441284,-411.651906,0.00014767,2]
[338744195,1726907441293,-411.651906,0.00014767,2]
[338744197,1726907441302,-411.651906,0.00014767,2]
[338744199,1726907441311,-411.651906,0.00014767,2]
[338744201,1726907441321,-411.651906,0.00014767,2]
[338744203,1726907441331,-46846.9425492,0.0001479,2]
[338744205,1726907441340,-5980.36275982,0.0001479,2]
[338744208,1726907441359,-37556.84961798,0.0001479,2]
[338744210,1726907441368,-43537.2123778,0.00014801,2]
[338744212,1726907441383,-151.0,0.0001481,2]
[338744214,1726907441393,-151.0,0.0001481,2]
[338744216,1726907441405,-496.222771,0.0001481,2]
[338744219,1726907441415,-496.222771,0.0001481,2]
[338744221,1726907441424,-366.71633,0.0001481,2]
[338744223,1726907441434,-366.71633,0.0001481,2]
[338744225,1726907441443,-169.46689441,0.0001482,2]
[338744227,1726907441452,-500.0,0.00014828,2]
[338744229,1726907441461,-605.47,0.00014828,2]
[338744231,1726907441471,-500.0,0.00014828,2]
[338744233,1726907441480,-500.0,0.00014828,2]
[338744235,1726907441489,-500.0,0.00014828,2]
[338744254,1726907441658,-500.0,0.00014828,2]
[338744255,1726907441667,-500.0,0.00014828,2]
[338744256,1726907441677,-500.0,0.00014828,2]
[338744257,1726907441686,-500.0,0.00014828,2]
[338744258,1726907441694,-500.0,0.00014828,2]
[338744259,1726907441704,-502.20130554,0.00014828,2]
[338744260,1726907441713,-500.0,0.00014828,2]
[338744262,1726907441723,-500.0,0.00014828,2]
[338744264,1726907441733,-500.0,0.00014828,2]
[338744266,1726907441743,-307.34497721,0.00014828,2]
[338744268,1726907441752,-500.0,0.00014828,2]
[338744270,1726907441762,-500.0,0.00014828,2]
[338744272,1726907441771,-500.0,0.00014828,2]
[338744274,1726907441781,-500.0,0.00014828,2]
[338744276,1726907441790,-500.0,0.00014828,2]
[338744278,1726907441799,-500.0,0.00014828,2]
[338744280,1726907441808,-500.0,0.00014828,2]
[338744282,1726907441817,-500.0,0.00014828,2]
[338744284,1726907441826,-500.0,0.00014828,2]
[338744286,1726907441835,-500.0,0.00014828,2]
[338744288,1726907441845,-500.0,0.00014828,2]
[338744290,1726907441855,-641.77781914,0.00014828,2]
[338744292,1726907441864,-500.0,0.00014828,2]
[338744294,1726907441874,-500.0,0.00014828,2]
[338744296,1726907441884,-627.76,0.00014828,2]
[338744298,1726907441893,-500.0,0.00014828,2]
[338744300,1726907441902,-500.0,0.00014828,2]
[338744302,1726907441912,-500.0,0.00014828,2]
[338744304,1726907441921,-500.0,0.00014828,2]
[338744306,1726907441931,-500.0,0.00014828,2]
[338744308,1726907441940,-500.0,0.00014828,2]
[338744310,1726907441949,-500.0,0.00014828,2]
[338744312,1726907441960,-500.0,0.00014828,2]
[338744314,1726907441969,-500.0,0.00014828,2]
[338744316,1726907441978,-500.0,0.00014828,2]
[338744318,1726907441988,-500.0,0.00014828,2]
[338744320,1726907441997,-532.04,0.00014828,2]
[338744322,1726907442008,-587.32,0.00014828,2]
[338744324,1726907442017,-628.26,0.00014828,2]
[338744326,1726907442027,-518.87,0.00014828,2]
[338744328,1726907442036,-500.0,0.00014828,2]
[338744330,1726907442046,-500.0,0.00014828,2]
[338744332,1726907442056,-500.0,0.00014828,2]
[338744334,1726907442065,-500.0,0.00014828,2]
[338744336,1726907442075,-500.0,0.00014828,2]
[338744337,1726907442085,-195.02236801,0.00014828,2]
[338744339,1726907442095,-500.0,0.00014828,2]
[338744341,1726907442105,-500.0,0.00014828,2]
[338744343,1726907442116,-832.89,0.00014828,2]
[338744345,1726907442126,-500.0,0.00014828,2]
[338744347,1726907442137,-231.90449802,0.00014828,2]
[338744349,1726907442156,-500.0,0.00014828,2]
[338744352,1726907442177,-824.79,0.00014828,2]
[338744354,1726907442195,-473.00343408,0.00014828,2]
[338744356,1726907442206,-500.0,0.00014828,2]
[338744357,1726907442215,-500.0,0.00014828,2]
[338744359,1726907442225,-500.0,0.00014828,2]
[338744361,1726907442235,-500.0,0.00014828,2]
[338744363,1726907442245,-15372.65,0.00014828,2]
[338744365,1726907442254,-803.28,0.00014828,2]
[338744367,1726907442264,-2203.4,0.00014828,2]
[338744369,1726907442274,-192.671463,0.00014828,2]
[338744372,1726907442283,-500.0,0.00014828,2]
[338744374,1726907442293,-209.758641,0.00014828,2]
[338744376,1726907442303,-500.0,0.00014828,2]
[338744378,1726907442312,-209.758641,0.00014828,2]
[338744380,1726907442322,-466.124755,0.00014828,2]
[338744382,1726907442332,-500.0,0.00014828,2]
[338744384,1726907442342,-466.124755,0.00014828,2]
[338744386,1726907442352,-667.87,0.00014829,2]
[338744388,1726907442361,-940.93,0.00014829,2]
[338744391,1726907442371,-500.0,0.00014829,2]
[338744393,1726907442386,-280.99809438,0.00014829,2]
[338744395,1726907442395,-200.0,0.00014829,2]
[338744397,1726907442404,-500.0,0.00014829,2]
[338744399,1726907442414,-500.0,0.00014829,2]
[338744401,1726907442426,-877.85,0.00014829,2]
[338744403,1726907442435,-954.9,0.00014829,2]
[338744405,1726907442444,-500.0,0.00014829,2]
[338744407,1726907442454,-500.0,0.00014829,2]
[338744409,1726907442463,-500.0,0.00014829,2]
[338744411,1726907442473,-500.0,0.00014829,2]
[338744413,1726907442482,-500.0,0.00014829,2]
[338744415,1726907442491,-500.0,0.00014829,2]
[338744416,1726907442500,-500.0,0.00014829,2]
[338744418,1726907442510,-500.0,0.00014829,2]
[338744420,1726907442519,-500.0,0.00014829,2]
[338744422,1726907442529,-500.0,0.00014829,2]
[338744424,1726907442538,-500.0,0.00014829,2]
[338744426,1726907442547,-1850.3,0.00014829,2]
[338744428,1726907442557,-500.0,0.00014829,2]
[338744430,1726907442567,-500.0,0.00014829,2]
[338744432,1726907442577,-500.0,0.00014829,2]
[338744434,1726907442586,-500.0,0.00014829,2]
[338744436,1726907442596,-1000.0,0.0001483,2]
[338744438,1726907442605,-1000.0,0.0001483,2]
[338744440,1726907442615,-749.6572609,0.0001483,2]
[338744442,1726907442624,-500.0,0.00014831,2]
[338744444,1726907442635,-500.0,0.00014831,2]
[338744446,1726907442644,-1480.54,0.00014831,2]
[338744448,1726907442655,-500.0,0.00014831,2]
[338744450,1726907442664,-500.0,0.00014831,2]
[338744452,1726907442673,-3657.0218638,0.00014845,2]
[338744454,1726907442682,-150.112233,0.000149,2]
[338744456,1726907442692,-150.112233,0.000149,2]
[338744458,1726907442701,-150.112266,0.000149,2]
[338744460,1726907442711,-1000.0,0.0001491,2]
[338744462,1726907442720,-544.1636485,0.00014916,2]
[338744464,1726907442730,-1128.84,0.00014929,2]
[338744466,1726907442739,-198.24347537,0.00014929,2]
[338744469,1726907442749,-151.0,0.00014994,2]
[338744471,1726907442758,-151.0,0.00014994,2]
[338744472,1726907442768,-496.222771,0.00014994,2]
[338744474,1726907442777,-496.222771,0.00014994,2]
[338744476,1726907442787,-366.71633,0.00014995,2]
[338744478,1726907442796,-366.71633,0.00014995,2]
[338744480,1726907442805,-950.41680686,0.00014995,2]
[338744482,1726907442814,-150.112233,0.00015,2]
[338744484,1726907442823,-150.112233,0.00015,2]
[338744486,1726907442832,-14002.08217502,0.00015,2]
[338744488,1726907442841,-1000.0,0.0001501,2]
[338744490,1726907442850,-244.3954,0.00015044,2]
[338744492,1726907442859,-244.92814,0.00015068,2]
[338744494,1726907442869,-500.0,0.00015073,2]
[338744496,1726907442879,-1000.0,0.00015085,2]
[338744498,1726907442888,-151.0,0.00015095,2]
[338744500,1726907442898,-151.0,0.00015095,2]
[338744502,1726907442907,-184.151997,0.00015095,2]
[338744504,1726907442916,-184.151997,0.00015095,2]
[338744506,1726907442925,-151.257543,0.00015095,2]
[338744508,1726907442935,-151.0,0.00015095,2]
[338744510,1726907442945,-151.0,0.00015095,2]
[338744512,1726907442954,-151.0,0.00015095,2]